Workbook

Sheet Звіт про рух грошового потоку
B1: Рух готівкиКошторисна калькуляція
B3: Початок фінансового року: | D3: (Попередній) запуск | E3: =UPPER(TEXT(Датапочаткуфінансовогороку,"mmm")) -> СІЧ | F3: =UPPER(TEXT(EOMONTH(Датапочаткуфінансовогороку,1),"mmm")) -> ЛЮТ | G3: =UPPER(TEXT(EOMONTH(Датапочаткуфінансовогороку,2),"mmm")) -> БЕР | H3: =UPPER(TEXT(EOMONTH(Датапочаткуфінансовогороку,3),"mmm")) -> КВІ | I3: =UPPER(TEXT(EOMONTH(Датапочаткуфінансовогороку,4),"mmm")) -> ТРА | J3: =UPPER(TEXT(EOMONTH(Датапочаткуфінансовогороку,5),"mmm")) -> ЧЕР | K3: =UPPER(TEXT(EOMONTH(Датапочаткуфінансовогороку,6),"mmm")) -> ЛИП | L3: =UPPER(TEXT(EOMONTH(Датапочаткуфінансовогороку,7),"mmm")) -> СЕР | M3: =UPPER(TEXT(EOMONTH(Датапочаткуфінансовогороку,8),"mmm")) -> ВЕР | N3: =UPPER(TEXT(EOMONTH(Датапочаткуфінансовогороку,9),"mmm")) -> ЖОВ | O3: =UPPER(TEXT(EOMONTH(Датапочаткуфінансовогороку,10),"mmm")) -> ЛИС | P3: =UPPER(TEXT(EOMONTH(Датапочаткуфінансовогороку,11),"mmm")) -> ГРУ | R3: Усього
B4: 2012-01-05 | D4: ЦІНА | E4: =Датапочаткуфінансовогороку -> 2012-01-05 | F4: =EOMONTH(E4,0)+DAY(Датапочаткуфінансовогороку) -> 2012-02-05 | G4: =EOMONTH(F4,0)+DAY(Датапочаткуфінансовогороку) -> 2012-03-05 | H4: =EOMONTH(G4,0)+DAY(Датапочаткуфінансовогороку) -> 2012-04-05 | I4: =EOMONTH(H4,0)+DAY(Датапочаткуфінансовогороку) -> 2012-05-05 | J4: =EOMONTH(I4,0)+DAY(Датапочаткуфінансовогороку) -> 2012-06-05 | K4: =EOMONTH(J4,0)+DAY(Датапочаткуфінансовогороку) -> 2012-07-05 | L4: =EOMONTH(K4,0)+DAY(Датапочаткуфінансовогороку) -> 2012-08-05 | M4: =EOMONTH(L4,0)+DAY(Датапочаткуфінансовогороку) -> 2012-09-05 | N4: =EOMONTH(M4,0)+DAY(Датапочаткуфінансовогороку) -> 2012-10-05 | O4: =EOMONTH(N4,0)+DAY(Датапочаткуфінансовогороку) -> 2012-11-05 | P4: =EOMONTH(O4,0)+DAY(Датапочаткуфінансовогороку) -> 2012-12-05 | R4: ЦІНА за од. товару
B6: Готівка в касі (початок місяця) | D6: 100 | E6: =D48 -> 100 | F6: =E48 -> -125 | G6: 45 | H6: -1 | I6: 224 | J6: 269 | K6: 269 | L6: 269 | M6: 269 | N6: 269 | O6: 269 | P6: 269 | R6: =P6 -> 269
B8: Грошові надходження
B9: Продажі за готівку | E9: 125 | F9: 120 | G9: 130 | H9: 100 | R9: =SUM(Грошовінадходження[[#This Row],[Період 0]:[Період 12]]) -> 475
B10: Отримання платежів із касових надходжень | H10: 75 | I10: 45 | R10: =SUM(Грошовінадходження[[#This Row],[Період 0]:[Період 12]]) -> 120
B11: Позика або інші надходження готівки | E11: 50 | F11: 50 | G11: 50 | H11: 50 | R11: =SUM(Грошовінадходження[[#This Row],[Період 0]:[Період 12]]) -> 200
B12: Усього | D12: =SUBTOTAL(109,Грошовінадходження[Період 0]) -> 0 | E12: =SUBTOTAL(109,Грошовінадходження[Період 1]) -> 175 | F12: =SUBTOTAL(109,Грошовінадходження[Період 2]) -> 170 | G12: =SUBTOTAL(109,Грошовінадходження[Період 3]) -> 180 | H12: =SUBTOTAL(109,Грошовінадходження[Період 4]) -> 225 | I12: =SUBTOTAL(109,Грошовінадходження[Період 5]) -> 45 | J12: =SUBTOTAL(109,Грошовінадходження[Період 6]) -> 0 | K12: =SUBTOTAL(109,Грошовінадходження[Період 7]) -> 0 | L12: =SUBTOTAL(109,Грошовінадходження[Період 8]) -> 0 | M12: =SUBTOTAL(109,Грошовінадходження[Період 9]) -> 0 | N12: =SUBTOTAL(109,Грошовінадходження[Період 10]) -> 0 | O12: =SUBTOTAL(109,Грошовінадходження[Період 11]) -> 0 | P12: =SUBTOTAL(109,Грошовінадходження[Період 12]) -> 0 | R12: =SUBTOTAL(109,Грошовінадходження[Усього]) -> 795
B13: Усього доступно готівкових грошей (перед видачею) | D13: =D6+SUM(Грошовінадходження[Період 0]) -> 100 | E13: =E6+SUM(Грошовінадходження[Період 1]) -> 275 | F13: =F6+SUM(Грошовінадходження[Період 2]) -> 45 | G13: =G6+SUM(Грошовінадходження[Період 3]) -> 225 | H13: =H6+SUM(Грошовінадходження[Період 4]) -> 224 | I13: =I6+SUM(Грошовінадходження[Період 5]) -> 269 | J13: =J6+SUM(Грошовінадходження[Період 6]) -> 269 | K13: =K6+SUM(Грошовінадходження[Період 7]) -> 269 | L13: =L6+SUM(Грошовінадходження[Період 8]) -> 269 | M13: =M6+SUM(Грошовінадходження[Період 9]) -> 269 | N13: =N6+SUM(Грошовінадходження[Період 10]) -> 269 | O13: =O6+SUM(Грошовінадходження[Період 11]) -> 269 | P13: =P6+SUM(Грошовінадходження[Період 12]) -> 269 | R13: =R6+SUM(Грошовінадходження[Усього]) -> 1064
B15: Виплачені кошти
B16: Закупівля (товар) | E16: 400 | G16: 226 | R16: =SUM(Виплаченікошти[[#This Row],[Період 0]:[Період 12]]) -> 626
B17: Закупівля (вкажіть) | R17: =SUM(Виплаченікошти[[#This Row],[Період 0]:[Період 12]]) -> 0
B18: Закупівля (вкажіть) | R18: =SUM(Виплаченікошти[[#This Row],[Період 0]:[Період 12]]) -> 0
B19: Заробітна плата до утримання податків (точна видача готівки) | R19: =SUM(Виплаченікошти[[#This Row],[Період 0]:[Період 12]]) -> 0
B20: Витрати на персонал (податки тощо) | R20: =SUM(Виплаченікошти[[#This Row],[Період 0]:[Період 12]]) -> 0
B21: Сторонні послуги | R21: =SUM(Виплаченікошти[[#This Row],[Період 0]:[Період 12]]) -> 0
B22: Приладдя (для офісу та роботи) | R22: =SUM(Виплаченікошти[[#This Row],[Період 0]:[Період 12]]) -> 0
B23: Ремонт та обслуговування | R23: =SUM(Виплаченікошти[[#This Row],[Період 0]:[Період 12]]) -> 0
B24: Реклама | R24: =SUM(Виплаченікошти[[#This Row],[Період 0]:[Період 12]]) -> 0
B25: Автотранспорт, доставка, відрядження | R25: =SUM(Виплаченікошти[[#This Row],[Період 0]:[Період 12]]) -> 0
B26: Бухгалтерський та юридичний супровід | R26: =SUM(Виплаченікошти[[#This Row],[Період 0]:[Період 12]]) -> 0
B27: Оренда | R27: =SUM(Виплаченікошти[[#This Row],[Період 0]:[Період 12]]) -> 0
B28: Телефон | R28: =SUM(Виплаченікошти[[#This Row],[Період 0]:[Період 12]]) -> 0
B29: Комунальні послуги | R29: =SUM(Виплаченікошти[[#This Row],[Період 0]:[Період 12]]) -> 0
B30: Страхування | R30: =SUM(Виплаченікошти[[#This Row],[Період 0]:[Період 12]]) -> 0
B31: Податки (нерухомість тощо) | R31: =SUM(Виплаченікошти[[#This Row],[Період 0]:[Період 12]]) -> 0
B32: Відсоткова ставка | R32: =SUM(Виплаченікошти[[#This Row],[Період 0]:[Період 12]]) -> 0
B33: Інші витрати (вкажіть) | R33: =SUM(Виплаченікошти[[#This Row],[Період 0]:[Період 12]]) -> 0
B34: Інше (вкажіть) | R34: =SUM(Виплаченікошти[[#This Row],[Період 0]:[Період 12]]) -> 0
B35: Інше (вкажіть) | R35: =SUM(Виплаченікошти[[#This Row],[Період 0]:[Період 12]]) -> 0
B36: Різне | R36: =SUM(Виплаченікошти[[#This Row],[Період 0]:[Період 12]]) -> 0
B37: Усього | D37: =SUBTOTAL(109,Виплаченікошти[Період 0]) -> 0 | E37: =SUBTOTAL(109,Виплаченікошти[Період 1]) -> 400 | F37: =SUBTOTAL(109,Виплаченікошти[Період 2]) -> 0 | G37: =SUBTOTAL(109,Виплаченікошти[Період 3]) -> 226 | H37: =SUBTOTAL(109,Виплаченікошти[Період 4]) -> 0 | I37: =SUBTOTAL(109,Виплаченікошти[Період 5]) -> 0 | J37: =SUBTOTAL(109,Виплаченікошти[Період 6]) -> 0 | K37: =SUBTOTAL(109,Виплаченікошти[Період 7]) -> 0 | L37: =SUBTOTAL(109,Виплаченікошти[Період 8]) -> 0 | M37: =SUBTOTAL(109,Виплаченікошти[Період 9]) -> 0 | N37: =SUBTOTAL(109,Виплаченікошти[Період 10]) -> 0 | O37: =SUBTOTAL(109,Виплаченікошти[Період 11]) -> 0 | P37: =SUBTOTAL(109,Виплаченікошти[Період 12]) -> 0 | R37: =SUBTOTAL(109,Виплаченікошти[Усього]) -> 626
B39: Виплачені кошти (без урахування прибутків і збитків)
B40: Виплата основної суми боргу кредиту | R40: =SUM(Виплаченікошти2[[#This Row],[Період 0]:[Період 12]]) -> 0
B41: Основна закупівля (вкажіть) | R41: =SUM(Виплаченікошти2[[#This Row],[Період 0]:[Період 12]]) -> 0
B42: Інші початкові витрати | R42: =SUM(Виплаченікошти2[[#This Row],[Період 0]:[Період 12]]) -> 0
B43: Збереження та/або умовне депонування | R43: =SUM(Виплаченікошти2[[#This Row],[Період 0]:[Період 12]]) -> 0
B44: Зняття коштів власника | R44: =SUM(Виплаченікошти2[[#This Row],[Період 0]:[Період 12]]) -> 0
B45: Усього | D45: =SUBTOTAL(109,Виплаченікошти2[Період 0]) -> 0 | E45: =SUBTOTAL(109,Виплаченікошти2[Період 1]) -> 0 | F45: =SUBTOTAL(109,Виплаченікошти2[Період 2]) -> 0 | G45: =SUBTOTAL(109,Виплаченікошти2[Період 3]) -> 0 | H45: =SUBTOTAL(109,Виплаченікошти2[Період 4]) -> 0 | I45: =SUBTOTAL(109,Виплаченікошти2[Період 5]) -> 0 | J45: =SUBTOTAL(109,Виплаченікошти2[Період 6]) -> 0 | K45: =SUBTOTAL(109,Виплаченікошти2[Період 7]) -> 0 | L45: =SUBTOTAL(109,Виплаченікошти2[Період 8]) -> 0 | M45: =SUBTOTAL(109,Виплаченікошти2[Період 9]) -> 0 | N45: =SUBTOTAL(109,Виплаченікошти2[Період 10]) -> 0 | O45: =SUBTOTAL(109,Виплаченікошти2[Період 11]) -> 0 | P45: =SUBTOTAL(109,Виплаченікошти2[Період 12]) -> 0 | R45: =SUBTOTAL(109,Виплаченікошти2[Усього]) -> 0
B46: Усього виплачено коштів | D46: =SUM(Виплаченікошти[Період 0],Виплаченікошти2[Період 0]) -> 0 | E46: =SUM(Виплаченікошти[Період 1],Виплаченікошти2[Період 1]) -> 400 | F46: =SUM(Виплаченікошти[Період 2],Виплаченікошти2[Період 2]) -> 0 | G46: =SUM(Виплаченікошти[Період 3],Виплаченікошти2[Період 3]) -> 226 | H46: =SUM(Виплаченікошти[Період 4],Виплаченікошти2[Період 4]) -> 0 | I46: =SUM(Виплаченікошти[Період 5],Виплаченікошти2[Період 5]) -> 0 | J46: =SUM(Виплаченікошти[Період 6],Виплаченікошти2[Період 6]) -> 0 | K46: =SUM(Виплаченікошти[Період 7],Виплаченікошти2[Період 7]) -> 0 | L46: =SUM(Виплаченікошти[Період 8],Виплаченікошти2[Період 8]) -> 0 | M46: =SUM(Виплаченікошти[Період 9],Виплаченікошти2[Період 9]) -> 0 | N46: =SUM(Виплаченікошти[Період 10],Виплаченікошти2[Період 10]) -> 0 | O46: =SUM(Виплаченікошти[Період 11],Виплаченікошти2[Період 11]) -> 0 | P46: =SUM(Виплаченікошти[Період 12],Виплаченікошти2[Період 12]) -> 0 | R46: =SUM(Виплаченікошти[Усього],Виплаченікошти2[Усього]) -> 626
B48: Касовий залишок (кінець місяця) | D48: =D13-D46 -> 100 | E48: -125 | F48: 45 | G48: -1 | H48: 224 | I48: 269 | J48: 269 | K48: 269 | L48: 269 | M48: 269 | N48: 269 | O48: 269 | P48: 269 | R48: =R13-R46 -> 438
